fUSD/lending_fUSD_20240628
["ID","MTS","AMOUNT","RATE_DAILY","PERIOD"]
[330539231,1719561088477,-3529.65,0.00019726,2]
[330539232,1719561088488,-790.68,0.00019726,2]
[330539233,1719561088497,-1259.18,0.00019726,2]
[330539234,1719561088507,-500.0,0.00019726,2]
[330539235,1719561088516,-803.47,0.00019726,2]
[330539236,1719561088526,-500.0,0.00019726,2]
[330539237,1719561088535,-863.97,0.00019726,2]
[330539238,1719561088544,-3541.7,0.00019726,2]
[330539239,1719561088553,-530.3,0.00019726,2]
[330539240,1719561088563,-676.52,0.00019726,2]
[330539241,1719561088574,-7586.47,0.00019726,2]
[330539242,1719561088583,-500.0,0.00019726,2]
[330539243,1719561088593,-731.62,0.00019726,2]
[330539244,1719561088603,-500.0,0.00019726,2]
[330539245,1719561088612,-500.0,0.00019726,2]
[330539246,1719561088622,-1475.96,0.00019726,2]
[330539247,1719561088631,-500.0,0.00019726,2]
[330539248,1719561088641,-955.45,0.00019726,2]
[330539249,1719561088650,-1270.09,0.00019726,2]
[330539250,1719561088661,-1393.57,0.00019726,2]
[330539251,1719561088670,-1229.77,0.00019726,2]
[330539252,1719561088679,-500.0,0.00019726,2]
[330539253,1719561088689,-2329.0,0.00019726,2]
[330539254,1719561088698,-773.16,0.00019726,2]
[330539255,1719561088707,-5063.06,0.00019726,2]
[330539256,1719561088717,-500.0,0.00019726,2]
[330539257,1719561088727,-986.15,0.00019726,2]
[330539258,1719561088737,-1485.78,0.00019726,2]
[330539259,1719561088746,-500.0,0.00019726,2]
[330539260,1719561088756,-1707.42,0.00019726,2]
[330539261,1719561088765,-2012.41,0.00019726,2]
[330539262,1719561088775,-500.0,0.00019726,2]
[330539263,1719561088785,-768.85,0.00019726,2]
[330539264,1719561088794,-921.17,0.00019726,2]
[330539265,1719561088804,-500.0,0.00019726,2]
[330539266,1719561088813,-2449.33,0.00019726,2]
[330539267,1719561088823,-2900.72,0.00019726,2]
[330539268,1719561088832,-2037.45,0.00019726,2]
[330539269,1719561088847,-9301.47,0.00019726,2]
[330539270,1719561088856,-500.0,0.00019726,2]
[330539271,1719561088866,-1779.04,0.00019726,2]
[330539272,1719561088875,-500.0,0.00019726,2]
[330539273,1719561088887,-1017.79,0.00019726,2]
[330539274,1719561088896,-526.59,0.00019726,2]
[330539275,1719561088906,-500.0,0.00019726,2]
[330539276,1719561088915,-527.34709591,0.00019726,2]
[330539277,1719561088925,-500.0,0.00019726,2]
[330539278,1719561088934,-663.42,0.00019726,2]
[330539279,1719561088943,-674.65,0.00019726,2]
[330539280,1719561088952,-500.0,0.00019726,2]
[330539281,1719561088962,-1420.13,0.00019726,2]
[330539282,1719561089074,-500.0,0.00019726,2]
[330539283,1719561089084,-2537.99,0.00019726,2]
[330539284,1719561089094,-1037.85,0.00019726,2]
[330539285,1719561089103,-3320.06,0.00019726,2]
[330539286,1719561089113,-500.0,0.00019726,2]
[330539287,1719561089122,-3319.78,0.00019726,2]
[330539288,1719561089131,-500.0,0.00019726,2]
[330539289,1719561089141,-634.63,0.00019726,2]
[330539290,1719561089150,-500.0,0.00019726,2]
[330539291,1719561089159,-56773.66,0.00019726,2]
[330539292,1719561089168,-555.58,0.00019726,2]
[330539293,1719561089178,-1092.89,0.00019726,2]
[330539294,1719561089187,-500.0,0.00019726,2]
[330539295,1719561089197,-621.9,0.00019726,2]
[330539296,1719561089206,-625.07,0.00019726,2]
[330539297,1719561089215,-510.63,0.00019726,2]
[330539298,1719561089224,-2200.88,0.00019726,2]
[330539299,1719561089233,-941.38,0.00019726,2]
[330539300,1719561089244,-2030.64,0.00019726,2]
[330539301,1719561089253,-500.0,0.00019726,2]
[330539302,1719561089262,-680.1,0.00019726,2]
[330539303,1719561089271,-670.5,0.00019726,2]
[330539304,1719561089281,-615.59981199,0.00019726,2]
[330539305,1719561089290,-500.0,0.00019726,2]
[330539306,1719561089299,-3883.66,0.00019726,2]
[330539307,1719561089309,-1305.67,0.00019726,2]
[330539308,1719561089318,-916.14,0.00019726,2]
[330539309,1719561089327,-608.88,0.00019726,2]
[330539310,1719561089337,-2094.61,0.00019726,2]
[330539311,1719561089346,-912.19,0.00019726,2]
[330539312,1719561089355,-624.72,0.00019726,2]
[330539313,1719561089364,-500.0,0.00019726,2]
[330539314,1719561089373,-500.0,0.00019726,2]
[330539315,1719561089384,-500.0,0.00019726,2]
[330539316,1719561089393,-500.0,0.00019726,2]
[330539317,1719561089402,-575.25,0.00019726,2]
[330539318,1719561089411,-500.0,0.00019726,2]
[330539319,1719561089420,-2077.02,0.00019726,2]
[330539320,1719561089430,-500.0,0.00019726,2]
[330539321,1719561089439,-1750.92,0.00019726,2]
[330539322,1719561089449,-500.0,0.00019726,2]
[330539323,1719561089458,-500.0,0.00019726,2]
[330539324,1719561089468,-1644.79,0.00019726,2]
[330539325,1719561089476,-586.86,0.00019726,2]
[330539326,1719561089486,-2240.25,0.00019726,2]
[330539327,1719561089497,-500.0,0.00019726,2]
[330539328,1719561089506,-785.73,0.00019726,2]
[330539329,1719561089515,-3442.26,0.00019726,2]
[330539330,1719561089524,-1783.03,0.00019726,2]
[330539331,1719561089533,-3820.4,0.00019726,2]
[330539332,1719561089542,-2119.76,0.00019726,2]
[330539333,1719561089552,-3279.62,0.00019726,2]
[330539334,1719561089561,-500.0,0.00019726,2]
[330539335,1719561089570,-1177.19,0.00019726,2]
[330539336,1719561089580,-500.0,0.00019726,2]
[330539337,1719561089589,-2812.36,0.00019726,2]
[330539338,1719561089598,-500.0,0.00019726,2]
[330539339,1719561089607,-500.0,0.00019726,2]
[330539340,1719561089617,-500.0,0.00019726,2]
[330539341,1719561089626,-1875.87,0.00019726,2]
[330539342,1719561089635,-500.0,0.00019726,2]
[330539343,1719561089644,-751.3,0.00019726,2]
[330539344,1719561089653,-5691.14,0.00019726,2]
[330539345,1719561089663,-500.0,0.00019726,2]
[330539346,1719561089672,-2181.6,0.00019726,2]
[330539347,1719561089682,-500.0,0.00019726,2]
[330539348,1719561089691,-4551.03,0.00019726,2]
[330539349,1719561089700,-1185.76,0.00019726,2]
[330539350,1719561089710,-500.0,0.00019726,2]
[330539351,1719561089719,-500.0,0.00019726,2]
[330539352,1719561089729,-500.0,0.00019726,2]
[330539353,1719561089741,-500.0,0.00019726,2]
[330539354,1719561089751,-500.0,0.00019726,2]
[330539355,1719561089761,-918.65,0.00019726,2]
[330539356,1719561089770,-500.0,0.00019726,2]
[330539357,1719561089779,-3480.66,0.00019726,2]
[330539358,1719561089789,-500.0,0.00019726,2]
[330539359,1719561089799,-2776.49,0.00019726,2]
[330539360,1719561089810,-710.75,0.00019726,2]
[330539361,1719561089820,-1117.03,0.00019726,2]
[330539362,1719561089830,-5538.45,0.00019726,2]
[330539363,1719561089843,-500.0,0.00019726,2]
[330539364,1719561089853,-500.0,0.00019726,2]
[330539365,1719561089862,-1555.15,0.00019726,2]
[330539366,1719561089872,-5613.75,0.00019726,2]
[330539367,1719561089883,-3058.96,0.00019726,2]
[330539368,1719561089892,-500.0,0.00019726,2]
[330539369,1719561089902,-500.0,0.00019726,2]
[330539370,1719561089912,-820.14,0.00019726,2]
[330539371,1719561089925,-500.0,0.00019726,2]
[330539372,1719561089935,-500.0,0.00019726,2]
[330539373,1719561089945,-825.28,0.00019726,2]
[330539374,1719561089955,-515.83,0.00019726,2]
[330539375,1719561089964,-4616.67,0.00019726,2]
[330539376,1719561089974,-500.0,0.00019726,2]
[330539377,1719561089983,-841.57,0.00019726,2]
[330539378,1719561089996,-500.0,0.00019726,2]
[330539379,1719561090006,-500.0,0.00019726,2]
[330539380,1719561090015,-592.24,0.00019726,2]
[330539381,1719561090024,-500.0,0.00019726,2]
[330539382,1719561090034,-500.0,0.00019726,2]
[330539383,1719561090045,-10383.18,0.00019726,2]
[330539384,1719561090054,-1039.73,0.00019726,2]
[330539385,1719561090064,-500.0,0.00019726,2]
[330539386,1719561090073,-1439.93,0.00019726,2]
[330539387,1719561090083,-887.72,0.00019726,2]
[330539388,1719561090094,-6117.5,0.00019726,2]
[330539389,1719561090103,-1863.96,0.00019726,2]
[330539390,1719561090113,-3531.61,0.00019726,2]
[330539391,1719561090123,-1143.1,0.00019726,2]
[330539392,1719561090133,-500.0,0.00019726,2]
[330539393,1719561090143,-500.0,0.00019726,2]
[330539394,1719561090153,-1362.09,0.00019726,2]
[330539395,1719561090162,-500.0,0.00019726,2]
[330539396,1719561090173,-23179.74,0.00019726,2]
[330539397,1719561090183,-3216.0,0.00019726,2]
[330539398,1719561090193,-469.58,0.00019726,2]
[330539399,1719561090203,-500.0,0.00019726,2]
[330539400,1719561090212,-16559.11,0.00019726,2]
[330539401,1719561090222,-500.0,0.00019726,2]
[330539402,1719561090232,-1155.64,0.00019726,2]
[330539403,1719561090244,-3529.87,0.00019726,2]
[330539404,1719561090253,-850.77,0.00019726,2]
[330539405,1719561090262,-3804.04,0.00019726,2]
[330539406,1719561090271,-500.0,0.00019726,2]
[330539407,1719561090280,-500.0,0.00019726,2]
[330539408,1719561090294,-1207.75,0.00019726,2]
[330539409,1719561090304,-500.0,0.00019726,2]
[330539410,1719561090313,-500.0,0.00019726,2]
[330539411,1719561090323,-932.07,0.00019726,2]
[330539412,1719561090332,-1059.78,0.00019726,2]
[330539413,1719561090341,-2084.87,0.00019726,2]
[330539414,1719561090351,-500.0,0.00019726,2]
[330539415,1719561090360,-2749.65,0.00019726,2]
[330539416,1719561090370,-12501.51,0.00019726,2]
[330539417,1719561090380,-547.83,0.00019726,2]
[330539418,1719561090389,-736.84,0.00019726,2]
[330539419,1719561090399,-1431.47,0.00019726,2]
[330539420,1719561090408,-500.0,0.00019726,2]
[330539421,1719561090417,-607.13,0.00019726,2]
[330539422,1719561090427,-2419.31,0.00019726,2]
[330539423,1719561090436,-500.0,0.00019726,2]
[330539424,1719561090445,-500.0,0.00019726,2]
[330539425,1719561090454,-9353.15,0.00019726,2]
[330539426,1719561090463,-694.49,0.00019726,2]
[330539427,1719561090473,-500.0,0.00019726,2]
[330539428,1719561090483,-500.0,0.00019726,2]
[330539429,1719561090496,-1192.09,0.00019726,2]
[330539430,1719561090506,-8136.93,0.00019726,2]
[330539431,1719561090516,-14843.86,0.00019726,2]
[330539432,1719561090525,-500.0,0.00019726,2]
[330539433,1719561090535,-500.0,0.00019726,2]
[330539434,1719561090544,-1830.13,0.00019726,2]
[330539435,1719561090554,-500.0,0.00019726,2]
[330539436,1719561090563,-917.05,0.00019726,2]
[330539437,1719561090572,-500.0,0.00019726,2]
[330539438,1719561090582,-500.0,0.00019726,2]
[330539439,1719561090591,-9718.8,0.00019726,2]
[330539440,1719561090600,-1404.66,0.00019726,2]
[330539441,1719561090609,-524.36,0.00019726,2]
[330539442,1719561090618,-500.0,0.00019726,2]
[330539443,1719561090628,-500.0,0.00019726,2]
[330539444,1719561090637,-687.75,0.00019726,2]
[330539445,1719561090646,-500.0,0.00019726,2]
[330539446,1719561090655,-590.48,0.00019726,2]
[330539447,1719561090665,-500.0,0.00019726,2]
[330539448,1719561090674,-2153.44,0.00019726,2]
[330539449,1719561090683,-1961.45,0.00019726,2]
[330539450,1719561090692,-500.0,0.00019726,2]
[330539451,1719561090702,-2726.91,0.00019726,2]
[330539452,1719561090712,-500.0,0.00019726,2]
[330539453,1719561090722,-30319.25,0.00019726,2]
[330539454,1719561090731,-500.0,0.00019726,2]
[330539455,1719561090742,-977.64,0.00019726,2]
[330539456,1719561090751,-500.0,0.00019726,2]
[330539457,1719561090761,-510.83,0.00019726,2]
[330539458,1719561090770,-1308.73,0.00019726,2]
[330539459,1719561090780,-627.05,0.00019726,2]
[330539460,1719561090789,-500.0,0.00019726,2]
[330539461,1719561090799,-1727.28,0.00019726,2]
[330539462,1719561090809,-500.0,0.00019726,2]
[330539463,1719561090818,-4237.77,0.00019726,2]
[330539464,1719561090827,-500.0,0.00019726,2]
[330539465,1719561090839,-500.0,0.00019726,2]
[330539466,1719561090850,-971.07,0.00019726,2]
[330539467,1719561090859,-500.0,0.00019726,2]
[330539468,1719561090869,-1351.8,0.00019726,2]
[330539469,1719561090879,-500.0,0.00019726,2]
[330539470,1719561090889,-2608.81,0.00019726,2]
[330539471,1719561090899,-2837.45,0.00019726,2]
[330539472,1719561090908,-500.0,0.00019726,2]
[330539473,1719561090919,-4285.86,0.00019726,2]
[330539474,1719561090928,-5870.19,0.00019726,2]
[330539475,1719561090937,-500.0,0.00019726,2]
[330539476,1719561090946,-12890.69,0.00019726,2]
[330539477,1719561090955,-1262.6,0.00019726,2]
[330539478,1719561090965,-6336.99,0.00019726,2]
[330539479,1719561090974,-8252.27,0.00019726,2]
[330539480,1719561090984,-1433.34,0.00019726,2]
[330539481,1719561090994,-500.0,0.00019726,2]
[330539482,1719561091003,-500.0,0.00019726,2]
[330539483,1719561091013,-500.0,0.00019726,2]
[330539484,1719561091022,-500.0,0.00019726,2]
[330539485,1719561091031,-2531.85,0.00019726,2]
[330539486,1719561091041,-500.0,0.00019726,2]
[330539487,1719561091051,-2352.32,0.00019726,2]
[330539488,1719561091062,-500.0,0.00019726,2]
[330539489,1719561091071,-8509.27,0.00019726,2]
[330539490,1719561091081,-5449.9,0.00019726,2]
[330539491,1719561091090,-545.53,0.00019726,2]
[330539492,1719561091100,-1047.12,0.00019726,2]
[330539493,1719561091110,-1711.25,0.00019726,2]
[330539494,1719561091119,-2403.33,0.00019726,2]
[330539495,1719561091130,-9077.06,0.00019726,2]
[330539496,1719561091140,-1089.03,0.00019726,2]
[330539497,1719561091149,-500.0,0.00019726,2]
[330539498,1719561091158,-500.0,0.00019726,2]
[330539499,1719561091167,-500.0,0.00019726,2]
[330539500,1719561091178,-500.0,0.00019726,2]
[330539501,1719561091188,-48268.7,0.00019726,2]
[330539502,1719561091197,-500.0,0.00019726,2]
[330539503,1719561091207,-2100.4,0.00019726,2]
[330539504,1719561091216,-1206.84,0.00019726,2]
[330539505,1719561091226,-2043.62,0.00019726,2]
[330539506,1719561091235,-500.0,0.00019726,2]
[330539507,1719561091247,-3104.35,0.00019726,2]
[330539508,1719561091256,-500.0,0.00019726,2]
[330539509,1719561091265,-500.0,0.00019726,2]
[330539510,1719561091274,-521.68,0.00019726,2]
[330539511,1719561091283,-1571.3,0.00019726,2]
[330539512,1719561091292,-949.58,0.00019726,2]
[330539513,1719561091302,-4077.23,0.00019726,2]
[330539514,1719561091311,-1255.94,0.00019726,2]
[330539515,1719561091321,-500.0,0.00019726,2]
[330539516,1719561091330,-500.0,0.00019726,2]
[330539517,1719561091340,-602.61,0.00019726,2]
[330539518,1719561091349,-500.0,0.00019726,2]
[330539519,1719561091358,-11111.01,0.00019726,2]
[330539520,1719561091367,-500.0,0.00019726,2]
[330539521,1719561091377,-1358.81,0.00019726,2]
[330539522,1719561091386,-42236.37,0.00019726,2]
[330539523,1719561091396,-500.0,0.00019726,2]
[330539524,1719561091405,-1332.94,0.00019726,2]
[330539525,1719561091414,-1300.0,0.00019726,2]
[330539526,1719561091423,-1544.91,0.00019726,2]
[330539527,1719561091433,-7476.11,0.00019726,2]
[330539528,1719561091443,-712.95,0.00019726,2]
[330539529,1719561091452,-707.93,0.00019726,2]
[330539530,1719561091462,-1446.93,0.00019726,2]
[330539531,1719561091472,-500.0,0.00019726,2]
[330539532,1719561091481,-850.09,0.00019726,2]
[330539533,1719561091492,-2886.12,0.00019726,2]
[330539534,1719561091502,-945.42,0.00019726,2]
[330539535,1719561091512,-500.0,0.00019726,2]
[330539536,1719561091521,-500.0,0.00019726,2]
[330539537,1719561091531,-5449.36,0.00019726,2]
[330539538,1719561091540,-594.36,0.00019726,2]
[330539539,1719561091550,-1924.21,0.00019726,2]
[330539540,1719561091561,-12586.2,0.00019726,2]
[330539541,1719561091570,-1289.14,0.00019726,2]
[330539542,1719561091579,-5222.3,0.00019726,2]
[330539543,1719561091588,-500.0,0.00019726,2]
[330539544,1719561091598,-768.96,0.00019726,2]
[330539545,1719561091607,-5851.92,0.00019726,2]
[330539546,1719561091617,-2337.53,0.00019726,2]
[330539547,1719561091628,-831.9,0.00019726,2]
[330539548,1719561091638,-500.0,0.00019726,2]
[330539549,1719561091647,-500.0,0.00019726,2]
[330539550,1719561091656,-500.0,0.00019726,2]
[330539551,1719561091666,-500.0,0.00019726,2]
[330539552,1719561091675,-500.0,0.00019726,2]
[330539553,1719561091684,-628.24,0.00019726,2]
[330539554,1719561091694,-603.56,0.00019726,2]
[330539555,1719561091703,-598.11,0.00019726,2]
[330539556,1719561091713,-1283.39,0.00019726,2]
[330539557,1719561091722,-1699.87,0.00019726,2]
[330539558,1719561091731,-2793.12,0.00019726,2]
[330539559,1719561091741,-704.49,0.00019726,2]
[330539560,1719561091759,-500.0,0.00019726,2]
[330539561,1719561091768,-4870.14,0.00019726,2]
[330539562,1719561091777,-966.94,0.00019726,2]
[330539563,1719561091786,-671.55,0.00019726,2]
[330539564,1719561091795,-500.0,0.00019726,2]
[330539565,1719561091804,-540.72,0.00019726,2]
[330539566,1719561091814,-721.87,0.00019726,2]
[330539567,1719561091823,-500.0,0.00019726,2]
[330539568,1719561091833,-500.0,0.00019726,2]
[330539569,1719561091845,-500.0,0.00019726,2]
[330539570,1719561091854,-505.4,0.00019726,2]
[330539571,1719561091864,-500.0,0.00019726,2]
[330539572,1719561091874,-500.0,0.00019726,2]
[330539573,1719561091886,-1685.84,0.00019726,2]
[330539574,1719561091895,-2147.27,0.00019726,2]
[330539575,1719561091907,-500.0,0.00019726,2]
[330539576,1719561091918,-500.0,0.00019726,2]
[330539577,1719561091930,-500.0,0.00019726,2]
[330539578,1719561091940,-574.19,0.00019726,2]
[330539579,1719561091949,-4610.65,0.00019726,2]
[330539580,1719561091958,-3996.23,0.00019726,2]
[330539581,1719561091967,-500.0,0.00019726,2]
[330539582,1719561091977,-500.0,0.00019726,2]
[330539583,1719561091986,-500.0,0.00019726,2]
[330539584,1719561091999,-2065.71,0.00019726,2]
[330539585,1719561092008,-3987.89,0.00019726,2]
[330539586,1719561092017,-587.38,0.00019726,2]
[330539587,1719561092027,-687.46,0.00019726,2]
[330539588,1719561092036,-1330.45,0.00019726,2]
[330539589,1719561092045,-3336.77,0.00019726,2]
[330539590,1719561092054,-225.98241691,0.00019726,2]
[330539591,1719561092062,-3314.18,0.00019726,2]
[330539592,1719561092071,-500.0,0.00019726,2]
[330539593,1719561092081,-872.41,0.00019726,2]
[330539594,1719561092091,-500.0,0.00019726,2]
[330539595,1719561092100,-810.49,0.00019726,2]
[330539596,1719561092109,-500.0,0.00019726,2]
[330539597,1719561092118,-1974.25,0.00019726,2]
[330539598,1719561092127,-5236.64,0.00019726,2]
[330539599,1719561092136,-642.68,0.00019726,2]
[330539600,1719561092145,-4552.9,0.00019726,2]
[330539601,1719561092154,-32404.44,0.00019726,2]
[330539602,1719561092163,-795.7,0.00019726,2]
[330539603,1719561092172,-24101.78,0.00019726,2]
[330539604,1719561092182,-694.42,0.00019726,2]
[330539605,1719561092191,-790.32,0.00019726,2]
[330539606,1719561092200,-4199.29,0.00019726,2]
[330539607,1719561092209,-7764.7,0.00019726,2]
[330539608,1719561092219,-500.0,0.00019726,2]
[330539609,1719561092228,-4218.61,0.00019726,2]
[330539610,1719561092237,-1450.89,0.00019726,2]
[330539611,1719561092249,-260.06944166,0.00019726,2]
[330539612,1719561092258,-922.73,0.00019726,2]
[330539613,1719561092267,-1033.21,0.00019726,2]
[330539614,1719561092276,-717.49,0.00019726,2]
[330539615,1719561092284,-4300.22,0.00019726,2]
[330539616,1719561092293,-897.41,0.00019726,2]
[330539617,1719561092302,-500.0,0.00019726,2]
[330539618,1719561092312,-701.5,0.00019726,2]
[330539619,1719561092322,-500.0,0.00019726,2]
[330539620,1719561092331,-776.36,0.00019726,2]
[330539621,1719561092340,-608.64,0.00019726,2]
[330539622,1719561092349,-500.0,0.00019726,2]
[330539623,1719561092359,-1429.64,0.00019726,2]
[330539624,1719561092368,-500.0,0.00019726,2]
[330539625,1719561092377,-9904.94,0.00019726,2]
[330539626,1719561092387,-640.51,0.00019726,2]
[330539627,1719561092396,-573.81,0.00019726,2]
[330539628,1719561092405,-431.83,0.00019726,2]
[330539629,1719561092414,-1577.54,0.00019726,2]
[330539630,1719561092423,-2085.15,0.00019726,2]
[330539631,1719561092432,-930.57,0.00019726,2]
[330539632,1719561092441,-500.0,0.00019726,2]
[330539633,1719561092450,-3366.18,0.00019726,2]
[330539634,1719561092459,-4334.27,0.00019726,2]
[330539635,1719561092468,-1068.95,0.00019726,2]
[330539636,1719561092477,-1596.89,0.00019726,2]
[330539637,1719561092486,-1065.22,0.00019726,2]
[330539638,1719561092498,-1080.72,0.00019726,2]
[330539639,1719561092508,-3797.01,0.00019726,2]
[330539640,1719561092517,-500.0,0.00019726,2]
[330539641,1719561092527,-831.79,0.00019726,2]
[330539642,1719561092536,-4588.12,0.00019726,2]
[330539643,1719561092545,-2798.1186873,0.00019855,2]
[330539644,1719561092554,-944.14155343,0.00019863,2]
[330539645,1719561092563,-1784.65181616,0.000199,2]
[330539646,1719561092574,-500.0,0.00019975,2]
[330539647,1719561092583,-200.0,0.00019975,2]
[330539648,1719561092592,-150.03,0.00019995,2]
[330539649,1719561092601,-1000.0,0.00019999,2]
[330539650,1719561092611,-907.53,0.0002,2]
[330539651,1719561092619,-500.0,0.0002,2]
[330539652,1719561092628,-500.0,0.0002,2]
[330539653,1719561092637,-500.0,0.0002,2]
[330539654,1719561092646,-503.75794463,0.0002,2]
[330539655,1719561092655,-533.53781591,0.0002,2]
[330539656,1719561092664,-500.0,0.0002,2]
[330539657,1719561092673,-2122.53,0.0002,2]
[330539658,1719561092682,-1141.96,0.0002,2]
[330539659,1719561092691,-500.0,0.0002,2]
[330539660,1719561092701,-1690.68,0.0002,2]
[330539661,1719561092710,-500.0,0.0002,2]
[330539662,1719561092720,-870.65,0.0002,2]
[330539663,1719561092730,-500.0,0.0002,2]
[330539664,1719561092739,-500.0,0.0002,2]
[330539665,1719561092750,-503.68,0.0002,2]
[330539666,1719561092759,-500.0,0.0002,2]
[330539667,1719561092769,-504.05,0.0002,2]
[330539668,1719561092778,-846.93,0.0002,2]
[330539669,1719561092788,-500.0,0.0002,2]
[330539670,1719561092796,-1149.92,0.0002,2]
[330539671,1719561092805,-1397.93,0.0002,2]
[330539672,1719561092814,-1748.17,0.0002,2]
[330539673,1719561092823,-500.0,0.0002,2]
[330539674,1719561092832,-542.84,0.0002,2]
[330539675,1719561092847,-500.0,0.0002,2]
[330539676,1719561092855,-693.92,0.0002,2]
[330539677,1719561092864,-500.0,0.0002,2]
[330539678,1719561092873,-500.0,0.0002,2]
[330539679,1719561092884,-792.31,0.0002,2]
[330539680,1719561092893,-500.0,0.0002,2]
[330539681,1719561092902,-1448.94,0.0002,2]
[330539682,1719561092911,-908.05,0.0002,2]
[330539683,1719561092923,-500.0,0.0002,2]
[330539684,1719561092933,-500.0,0.0002,2]
[330539685,1719561092943,-500.0,0.0002,2]
[330539686,1719561092952,-500.0,0.0002,2]
[330539687,1719561092961,-500.0,0.0002,2]
[330539688,1719561092971,-500.0,0.0002,2]
[330539689,1719561092980,-576.89971474,0.0002,2]
[330539690,1719561092989,-1782.8,0.0002,2]
[330539691,1719561093002,-500.0,0.0002,2]
[330539692,1719561093015,-856.16,0.0002,2]
[330539693,1719561093024,-500.0,0.0002,2]
[330539694,1719561093032,-1199.91,0.0002,2]
[330539695,1719561093042,-539.97,0.0002,2]
[330539696,1719561093051,-500.0,0.0002,2]
[330539697,1719561093060,-500.0,0.0002,2]
[330539698,1719561093069,-500.0,0.0002,2]
[330539699,1719561093079,-1183.51,0.0002,2]
[330539700,1719561093088,-1192.41,0.0002,2]
[330539701,1719561093097,-500.0,0.0002,2]
[330539702,1719561093106,-2299.92,0.0002,2]
[330539703,1719561093115,-654.32,0.0002,2]
[330539704,1719561093124,-500.0,0.0002,2]
[330539705,1719561093133,-500.0,0.0002,2]
[330539706,1719561093142,-673.16,0.0002,2]
[330539707,1719561093275,-500.0,0.0002,2]
[330539708,1719561093294,-1135.59,0.0002,2]
[330539709,1719561093304,-718.46,0.0002,2]
[330539710,1719561093314,-500.0,0.0002,2]
[330539711,1719561093323,-500.0,0.0002,2]
[330539712,1719561093332,-500.0,0.0002,2]
[330539713,1719561093342,-500.0,0.0002,2]
[330539714,1719561093352,-500.0,0.0002,2]
[330539715,1719561093362,-500.0,0.0002,2]
[330539716,1719561093372,-500.0,0.0002,2]
[330539717,1719561093382,-828.5,0.0002,2]
[330539718,1719561093391,-500.0,0.0002,2]
[330539719,1719561093401,-500.0,0.0002,2]
[330539720,1719561093411,-500.0,0.0002,2]
[330539721,1719561093420,-500.0,0.0002,2]
[330539722,1719561093431,-1470.46,0.0002,2]
[330539723,1719561093440,-2500.0,0.0002,3]
[330539724,1719561093449,-1942.8,0.0002,2]
[330539725,1719561093459,-568.18,0.0002,2]
[330539726,1719561093468,-500.0,0.0002,2]
[330539727,1719561093478,-500.0,0.0002,2]
[330539728,1719561093487,-500.0,0.0002,2]
[330539729,1719561093502,-559.8,0.0002,2]
[330539730,1719561093511,-500.0,0.0002,2]